[Event "7th Iberoamerican-ch 2019"]
[Site "Linares"]
[Date "2019.08.17"]
[Round "8.17"]
[White "Garriga Cazorla, Pere"]
[Black "Matnadze, Ana"]
[Result "0-1"]
[ECO "A05"]
[WhiteElo "2495"]
[BlackElo "2363"]
[Annotator "ChessBase"]
[PlyCount "58"]
[EventDate "2019.08.10"]
[EventType "swiss"]
[EventCountry "ESP"]
[SourceTitle "playchess.com"]
[Source "ChessBase"]
[SourceQuality "1"]
[TimeControl "5400+30"]

1. Nf3 {[%emt 0:03:48]} Nf6 {[%emt 0:00:00]} 2. c4 {[%emt 0:00:05]} e6 {[%emt 0:00:00]} 3. Nc3 {[%emt 0:00:04]} d5 {[%emt 0:00:04]} 4. d4 {[%emt 0:00:04]} g6 {[%emt 0:00:06]} 5. Bg5 {[%emt 0:01:16]} Bg7 {[%emt 0:00:07]} 6. e3 {[%emt 0:00:43]} O-O {[%emt 0:00:10]} 7. Bd3 {[%emt 0:00:11]} dxc4 {[%emt 0:03:35]} 8. Bxc4 {[%emt 0:00:25]} c5 {[%emt 0:00:36]} 9. O-O {[%emt 0:08:08]} cxd4 {[%emt 0:00:50]} 10. Nxd4 {[%emt 0:00:43]} Qa5 {[%emt 0:03:17]} 11. Bh4 {[%emt 0:01:34]} Nc6 {[%emt 0:01:25]} 12. Nxc6 {[%emt 0:05:39]} bxc6 {[%emt 0:00:07]} 13. Qa4 {[%emt 0:00:05]} Qxa4 {[%emt 0:03:09]} 14. Nxa4 {[%emt 0:00:09]} Nd5 {[%emt 0:00:17]} 15. Bb3 {[%emt 0:06:45]} Nb6 {[%emt 0:06:33]} 16. Rfd1 {[%emt 0:02:25]} Ba6 {[%emt 0:01:26]} 17. Nc5 {[%emt 0:02:52]} Bc4 {[%emt 0:00:54]} 18. Rd2 {[%emt 0:04:43]} Rfb8 {[%emt 0:06:29]} 19. Rc1 {[%emt 0:11:17]} Bxb3 {[%emt 0:06:14]} 20. Nxb3 {[%emt 0:10:51]} Nd5 {[%emt 0:02:39]} 21. Bg3 {[%emt 0:02:21]} Rb6 {[%emt 0:05:52]} 22. Bd6 {[%emt 0:02:31]} a5 {[%emt 0:09:52]} 23. Bc5 {[%emt 0:02:37]} Rb7 {[%emt 0:11:54]} 24. Nd4 {[%emt 0:04:23]} Nb4 {[%emt 0:02:54]} 25. a4 {[%emt 0:04:21]} Rd8 {[%emt 0:07:33]} 26. Rcd1 {[%emt 0:03:09]} Rd5 {[%emt 0:04:35]} 27. Bxb4 {[%emt 0:04:00]} Rxb4 {[%emt 0:00:06]} 28. Nxc6 {[%emt 0:00:25]} Rxd2 {[%emt 0:00:20]} 29. Rxd2 {[%emt 0:00:28]} Rc4 {[%emt 0:00:16]} 0-1

[Event "7th Iberoamerican-ch 2019"]
[Site "Linares"]
[Date "2019.08.17"]
[Round "8.18"]
[White "Fluvia Poyatos, Jordi"]
[Black "Blanco Acevedo, Cristobal Jose"]
[Result "1-0"]
[ECO "B07"]
[WhiteElo "2455"]
[BlackElo "2342"]
[Annotator "ChessBase"]
[PlyCount "113"]
[EventDate "2019.08.10"]
[EventType "swiss"]
[EventCountry "ESP"]
[SourceTitle "playchess.com"]
[Source "ChessBase"]
[SourceQuality "1"]
[TimeControl "5400+30"]

1. e4 {[%emt 0:00:00]} d6 {[%emt 0:03:06]} 2. d4 {[%emt 0:00:15]} Nf6 {[%emt 0:00:19]} 3. Nc3 {[%emt 0:00:39]} g6 {[%emt 0:00:07]} 4. Bg5 {[%emt 0:00:21]} c6 {[%emt 0:01:29]} 5. Qd2 {[%emt 0:00:17]} Nbd7 {[%emt 0:00:18]} 6. O-O-O {[%emt 0:00:32]} h6 {[%emt 0:00:25]} 7. Bh4 {[%emt 0:01:52]} g5 {[%emt 0:00:21]} 8. Bg3 {[%emt 0:00:09]} Nh5 {[%emt 0:00:05]} 9. e5 {[%emt 0:02:43]} Nxg3 {[%emt 0:01:31]} 10. hxg3 {[%emt 0:00:35]} Nb6 {[%emt 0:00:46]} 11. Qe3 {[%emt 0:03:29]} Bg7 {[%emt 0:10:10]} 12. f4 {[%emt 0:02:17]} g4 {[%emt 0:14:49]} 13. Bd3 {[%emt 0:00:20]} Nd5 {[%emt 0:01:55]} 14. Nxd5 {[%emt 0:01:06]} cxd5 {[%emt 0:00:05]} 15. Ne2 {[%emt 0:00:45]} e6 {[%emt 0:04:12]} 16. Rh4 {[%emt 0:04:43]} Bd7 {[%emt 0:13:32]} 17. Rxg4 {[%emt 0:01:06]} Bf8 {[%emt 0:00:10]} 18. Kb1 {[%emt 0:08:18]} Qb6 {[%emt 0:00:29]} 19. Nc1 {[%emt 0:03:53]} O-O-O {[%emt 0:00:58]} 20. Rh4 {[%emt 0:01:49]} Be7 {[%emt 0:01:42]} 21. Rh5 {[%emt 0:02:36]} dxe5 {[%emt 0:01:11]} 22. Qxe5 {[%emt 0:01:55]} f6 {[%emt 0:03:49]} 23. Qe3 {[%emt 0:00:09]} e5 {[%emt 0:14:20]} 24. fxe5 {[%emt 0:01:48]} fxe5 {[%emt 0:00:09]} 25. Rxe5 {[%emt 0:02:01]} Bg5 {[%emt 0:01:37]} 26. Qf3 {[%emt 0:01:08]} Kb8 {[%emt 0:02:50]} 27. Bf5 {[%emt 0:06:57]} Bc6 {[%emt 0:01:00]} 28. Nb3 {[%emt 0:00:59]} Ka8 {[%emt 0:00:23]} 29. g4 {[%emt 0:01:32]} Rhe8 {[%emt 0:00:58]} 30. Qc3 {[%emt 0:03:26]} Bf4 {[%emt 0:01:21]} 31. Rxe8 {[%emt 0:00:23]} Rxe8 {[%emt 0:00:07]} 32. Re1 {[%emt 0:00:12]} Rxe1+ {[%emt 0:01:33]} 33. Qxe1 {[%emt 0:00:07]} a6 {[%emt 0:00:41]} 34. Qe7 {[%emt 0:05:30]} Qc7 {[%emt 0:01:48]} 35. Qxc7 {[%emt 0:05:10]} Bxc7 {[%emt 0:00:04]} 36. Nc5 {[%emt 0:00:20]} Bd6 {[%emt 0:01:35]} 37. c3 {[%emt 0:00:52]} Ka7 {[%emt 0:02:02]} 38. Kc2 {[%emt 0:00:57]} Kb6 {[%emt 0:00:33]} 39. Nd3 {[%emt 0:02:34]} a5 {[%emt 0:00:12]} 40. Kd2 {[%emt 0:00:35]} Bb5 {[%emt 0:00:50]} 41. Ne5 {[%emt 0:00:25]} Bf1 {[%emt 0:00:54]} 42. g3 {[%emt 0:00:28]} Be7 {[%emt 0:04:39]} 43. Ng6 {[%emt 0:02:33]} Bg5+ {[%emt 0:00:43]} 44. Nf4 {[%emt 0:00:20]} Kc6 {[%emt 0:00:46]} 45. Bd3 {[%emt 0:04:15]} Bxd3 {[%emt 0:00:27]} 46. Kxd3 {[%emt 0:00:06]} b5 {[%emt 0:00:26]} 47. b3 {[%emt 0:00:36]} Kd6 {[%emt 0:03:23]} 48. a4 {[%emt 0:00:23]} b4 {[%emt 0:01:41]} 49. c4 {[%emt 0:01:12]} dxc4+ {[%emt 0:00:04]} 50. Kxc4 {[%emt 0:00:08]} Kc6 {[%emt 0:00:04]} 51. Kd3 {[%emt 0:00:16]} Kd6 {[%emt 0:00:06]} 52. Ke4 {[%emt 0:00:06]} Bf6 {[%emt 0:00:14]} 53. Nd5 {[%emt 0:00:13]} Bd8 {[%emt 0:00:08]} 54. Ne3 {[%emt 0:00:45]} Ke6 {[%emt 0:00:04]} 55. Nf5 {[%emt 0:00:44]} Bg5 {[%emt 0:00:22]} 56. d5+ {[%emt 0:00:34]} Kf6 {[%emt 0:00:05]} 57. Nd6 {[%emt 0:00:49]} 1-0

[Event "7th Iberoamerican-ch 2019"]
[Site "Linares"]
[Date "2019.08.17"]
[Round "8.19"]
[White "Cruz Ravina, Francisco Javier"]
[Black "Cori T., Deysi"]
[Result "1-0"]
[ECO "C00"]
[WhiteElo "2366"]
[BlackElo "2400"]
[Annotator "NA"]
[PlyCount "91"]
[EventDate "2019.08.10"]
[EventType "swiss"]
[EventCountry "ESP"]
[SourceTitle "playchess.com"]
[Source "ChessBase"]
[SourceQuality "1"]
[TimeControl "5400+30"]

1. e4 {[%emt 0:00:00]} e6 {[%emt 0:03:38]} 2. b3 {[%emt 0:00:34]} d5 {[%emt 0:04:15]} 3. Bb2 {[%emt 0:00:23]} Nf6 {[%emt 0:03:04]} 4. e5 {[%emt 0:01:04]} Nfd7 {[%emt 0:00:10]} 5. f4 {[%emt 0:00:27]} c5 {[%emt 0:02:18]} 6. Nf3 {[%emt 0:01:00]} Nc6 {[%emt 0:00:39]} 7. g3 {[%emt 0:00:36]} Qc7 {[%emt 0:03:09]} 8. Bg2 {[%emt 0:01:32]} Be7 {[%emt 0:09:19]} 9. O-O {[%emt 0:01:08]} b6 {[%emt 0:03:38]} 10. Nc3 {[%emt 0:14:56]} Ba6 {[%emt 0:08:56]} 11. Re1 {[%emt 0:01:04]} O-O {[%emt 0:03:45]} 12. a4 {[%emt 0:03:08]} Rad8 {[%emt 0:06:18]} 13. Nb5 {[%emt 0:09:48]} Qb8 {[%emt 0:04:02]} 14. d4 {[%emt 0:03:50]} Bc8 {[%emt 0:01:38]} 15. dxc5 {[%emt 0:13:37]} bxc5 {[%emt 0:02:10]} 16. f5 {[%emt 0:03:59]} d4 {[%emt 0:14:58]} 17. Qe2 {[%emt 0:16:55]} exf5 {[%emt 0:06:00]} 18. e6 {[%emt 0:04:21]} Nb6 {[%emt 0:00:01]} 19. exf7+ {[%emt 0:02:40]} Rxf7 {[%emt 0:00:53]} 20. Bc1 {[%emt 0:00:34]} d3 {[%emt 0:09:29]} 21. cxd3 {[%emt 0:00:23]} Nd5 {[%emt 0:00:03]} 22. Ng5 {[%emt 0:01:52]} Rf6 {[%emt 0:00:52]} 23. Bxd5+ {[%emt 0:08:20]} Rxd5 {[%emt 0:00:02]} 24. Qh5 {[%emt 0:00:30]} h6 {[%emt 0:00:31]} 25. Bb2 {[%emt 0:01:18]} Rxd3 {[%emt 0:09:22]} 26. Bxf6 {[%emt 0:02:05]} Rxg3+ {[%emt 0:00:03]} 27. hxg3 {[%emt 0:00:39]} Qxg3+ {[%emt 0:00:02]} 28. Kf1 {[%emt 0:01:27]} hxg5 {[%emt 0:00:22]} 29. Bxe7 {[%emt 0:04:32]} f4 {[%emt 0:01:18]} 30. Qe8+ {[%emt 0:00:53]} Kh7 {[%emt 0:00:01]} 31. Qh5+ {[%emt 0:00:12]} Kg8 {[%emt 0:00:00]} 32. Qxg5 {[%emt 0:00:31]} Bh3+ {[%emt 0:00:50]} 33. Ke2 {[%emt 0:00:04]} Qe3+ {[%emt 0:01:45]} 34. Kd1 {[%emt 0:00:06]} Qxb3+ {[%emt 0:00:06]} 35. Kc1 {[%emt 0:02:08]} Nb4 {[%emt 0:01:12]} 36. Qg6 {[%emt 0:00:22]} Qc4+ {[%emt 0:02:06]} 37. Kd2 {[%emt 0:00:22]} Qd5+ {[%emt 0:00:28]} 38. Kc3 {[%emt 0:00:42]} Qf3+ {[%emt 0:00:40]} 39. Kd2 {[%emt 0:00:30]} Qd5+ {[%emt 0:00:22]} 40. Ke2 {[%emt 0:00:36]} Qc4+ {[%emt 0:01:00]} 41. Kf3 {[%emt 0:00:27]} Qb3+ {[%emt 0:00:17]} 42. Kf2 {[%emt 0:00:26]} Nd3+ {[%emt 0:00:31]} 43. Kg1 {[%emt 0:00:07]} f3 {[%emt 0:00:44]} 44. Qe8+ {[%emt 0:00:12]} Kh7 {[%emt 0:00:01]} 45. Qh5+ {[%emt 0:00:07]} Kg8 {[%emt 0:00:00]} 46. Qxf3 {[%emt 0:00:11]} 1-0

[Event "7th Iberoamerican-ch 2019"]
[Site "Linares"]
[Date "2019.08.17"]
[Round "8.20"]
[White "Teran Alvarez, Ismael"]
[Black "Gavarrete, Nahun"]
[Result "1-0"]
[ECO "B70"]
[WhiteElo "2392"]
[BlackElo "2349"]
[Annotator "NA"]
[PlyCount "65"]
[EventDate "2019.08.10"]
[EventType "swiss"]
[EventCountry "ESP"]
[SourceTitle "playchess.com"]
[Source "ChessBase"]
[SourceQuality "1"]
[TimeControl "5400+30"]

1. e4 {[%emt 0:02:15]} c5 {[%emt 0:00:00]} 2. Nf3 {[%emt 0:00:36]} d6 {[%emt 0:00:00]} 3. d4 {[%emt 0:00:20]} cxd4 {[%emt 0:00:00]} 4. Nxd4 {[%emt 0:00:42]} Nf6 {[%emt 0:00:07]} 5. Nc3 {[%emt 0:00:03]} g6 {[%emt 0:00:06]} 6. Bc4 {[%emt 0:02:05]} Bg7 {[%emt 0:00:13]} 7. O-O {[%emt 0:00:31]} O-O {[%emt 0:01:25]} 8. Re1 {[%emt 0:00:40]} Nc6 {[%emt 0:00:20]} 9. Nb3 {[%emt 0:00:36]} Bd7 {[%emt 0:07:30]} 10. Bf1 {[%emt 0:06:27]} Rc8 {[%emt 0:00:31]} 11. Nd5 {[%emt 0:11:08]} Ne5 {[%emt 0:06:11]} 12. c3 {[%emt 0:06:55]} Re8 {[%emt 0:03:56]} 13. a4 {[%emt 0:04:40]} Nc4 {[%emt 0:17:38]} 14. a5 {[%emt 0:07:21]} Nxd5 {[%emt 0:01:25]} 15. exd5 {[%emt 0:01:08]} b5 {[%emt 0:00:13]} 16. axb6 {[%emt 0:02:23]} axb6 {[%emt 0:06:30]} 17. Nd4 {[%emt 0:02:53]} b5 {[%emt 0:03:22]} 18. Ra7 {[%emt 0:17:47]} Rc5 {[%emt 0:16:26]} 19. Nc2 {[%emt 0:05:55]} Nb6 {[%emt 0:09:16]} 20. Nb4 {[%emt 0:01:28]} Qb8 {[%emt 0:02:20]} 21. Ra1 {[%emt 0:06:03]} Qb7 {[%emt 0:01:45]} 22. Be3 {[%emt 0:00:31]} Na4 {[%emt 0:03:31]} 23. Bxc5 {[%emt 0:02:04]} dxc5 {[%emt 0:00:02]} 24. Nc6 {[%emt 0:00:27]} Bxc6 {[%emt 0:14:57]} 25. dxc6 {[%emt 0:00:16]} Qxc6 {[%emt 0:00:02]} 26. Bxb5 {[%emt 0:00:31]} Qxb5 {[%emt 0:00:09]} 27. Qxa4 {[%emt 0:00:09]} Qxa4 {[%emt 0:00:21]} 28. Rxa4 {[%emt 0:00:06]} Rb8 {[%emt 0:00:50]} 29. Ra2 {[%emt 0:06:02]} f5 {[%emt 0:02:45]} 30. g3 {[%emt 0:01:01]} Kf7 {[%emt 0:00:13]} 31. Rd1 {[%emt 0:00:18]} Rb7 {[%emt 0:01:15]} 32. Rd2 {[%emt 0:00:30]} Bh6 {[%emt 0:01:12]} 33. Re2 {[%emt 0:00:12]} 1-0

[Event "7th Iberoamerican-ch 2019"]
[Site "Linares"]
[Date "2019.08.17"]
[Round "8.21"]
[White "Romero Berruezo, Francisco"]
[Black "Vega Gutierrez, Sabrina"]
[Result "0-1"]
[ECO "B33"]
[WhiteElo "2161"]
[BlackElo "2385"]
[Annotator "NA"]
[PlyCount "100"]
[EventDate "2019.08.10"]
[EventType "swiss"]
[EventCountry "ESP"]
[SourceTitle "playchess.com"]
[Source "ChessBase"]
[SourceQuality "1"]
[TimeControl "5400+30"]

1. e4 {[%emt 0:00:03]} c5 {[%emt 0:00:00]} 2. Nf3 {[%emt 0:00:22]} Nc6 {[%emt 0:00:32]} 3. d4 {[%emt 0:02:07]} cxd4 {[%emt 0:00:09]} 4. Nxd4 {[%emt 0:00:02]} Nf6 {[%emt 0:00:12]} 5. Nc3 {[%emt 0:00:06]} e5 {[%emt 0:00:16]} 6. Ndb5 {[%emt 0:00:17]} d6 {[%emt 0:00:09]} 7. Bg5 {[%emt 0:00:16]} a6 {[%emt 0:00:07]} 8. Na3 {[%emt 0:00:12]} b5 {[%emt 0:00:09]} 9. Bxf6 {[%emt 0:00:47]} gxf6 {[%emt 0:00:09]} 10. Nd5 {[%emt 0:00:04]} f5 {[%emt 0:01:40]} 11. c3 {[%emt 0:00:12]} Bg7 {[%emt 0:02:19]} 12. exf5 {[%emt 0:01:16]} Bxf5 {[%emt 0:00:11]} 13. Nc2 {[%emt 0:00:20]} O-O {[%emt 0:00:44]} 14. Nce3 {[%emt 0:00:19]} Be6 {[%emt 0:00:08]} 15. Bd3 {[%emt 0:00:19]} f5 {[%emt 0:00:25]} 16. Bc2 {[%emt 0:00:47]} Kh8 {[%emt 0:02:54]} 17. Qh5 {[%emt 0:04:24]} e4 {[%emt 0:27:56]} 18. Nf4 {[%emt 0:12:22]} Qe8 {[%emt 0:00:51]} 19. Qxe8 {[%emt 0:03:56]} Raxe8 {[%emt 0:00:08]} 20. Bb3 {[%emt 0:03:12]} Bc8 {[%emt 0:03:43]} 21. Rd1 {[%emt 0:08:19]} Be5 {[%emt 0:02:25]} 22. g3 {[%emt 0:08:04]} Na5 {[%emt 0:17:11]} 23. Bd5 {[%emt 0:13:49]} Nb7 {[%emt 0:00:09]} 24. Bxb7 {[%emt 0:02:44]} Bxb7 {[%emt 0:00:33]} 25. Nfd5 {[%emt 0:05:35]} Rf7 {[%emt 0:04:05]} 26. Ke2 {[%emt 0:12:00]} a5 {[%emt 0:01:10]} 27. Rd2 {[%emt 0:03:18]} Ref8 {[%emt 0:06:21]} 28. Nf4 {[%emt 0:01:21]} Rc8 {[%emt 0:02:34]} 29. Rhd1 {[%emt 0:02:49]} Ba6 {[%emt 0:04:52]} 30. Rxd6 {[%emt 0:01:28]} Bxd6 {[%emt 0:00:12]} 31. Rxd6 {[%emt 0:00:04]} Bb7 {[%emt 0:00:31]} 32. Kd2 {[%emt 0:05:52]} Bc6 {[%emt 0:02:44]} 33. b3 {[%emt 0:02:19]} Rd7 {[%emt 0:00:56]} 34. Rxd7 {[%emt 0:00:13]} Bxd7 {[%emt 0:00:07]} 35. c4 {[%emt 0:00:16]} bxc4 {[%emt 0:02:17]} 36. bxc4 {[%emt 0:00:12]} Kg7 {[%emt 0:00:38]} 37. Kc3 {[%emt 0:00:05]} Kf6 {[%emt 0:01:26]} 38. Kd4 {[%emt 0:00:12]} Rb8 {[%emt 0:00:23]} 39. Ned5+ {[%emt 0:03:40]} Kf7 {[%emt 0:00:06]} 40. Kc3 {[%emt 0:01:08]} Rb1 {[%emt 0:00:14]} 41. Ne3 {[%emt 0:00:21]} Ra1 {[%emt 0:04:33]} 42. Kb2 {[%emt 0:01:49]} Rh1 {[%emt 0:00:19]} 43. h4 {[%emt 0:00:53]} Rh2 {[%emt 0:04:10]} 44. Nfg2 {[%emt 0:00:38]} Kf6 {[%emt 0:00:48]} 45. Kc3 {[%emt 0:00:27]} Ke5 {[%emt 0:00:03]} 46. c5 {[%emt 0:00:34]} Bb5 {[%emt 0:00:19]} 47. Nf4 {[%emt 0:02:51]} Rxf2 {[%emt 0:00:35]} 48. a4 {[%emt 0:00:03]} Ba6 {[%emt 0:02:37]} 49. Nc4+ {[%emt 0:00:36]} Bxc4 {[%emt 0:00:15]} 50. Kxc4 {[%emt 0:00:02]} Rb2 {[%emt 0:00:13]} 0-1

[Event "7th Iberoamerican-ch 2019"]
[Site "Linares"]
[Date "2019.08.17"]
[Round "8.22"]
[White "Valenzuela Gomez, Fernando"]
[Black "Guerrero Vargas, Andres Jesus"]
[Result "1/2-1/2"]
[ECO "E21"]
[WhiteElo "2388"]
[BlackElo "2342"]
[Annotator "NA"]
[PlyCount "114"]
[EventDate "2019.08.10"]
[EventType "swiss"]
[EventCountry "ESP"]
[SourceTitle "playchess.com"]
[Source "ChessBase"]
[SourceQuality "1"]
[TimeControl "5400+30"]

1. d4 {[%emt 0:01:27]} Nf6 {[%emt 0:00:00]} 2. c4 {[%emt 0:00:06]} e6 {[%emt 0:00:00]} 3. Nc3 {[%emt 0:00:37]} Bb4 {[%emt 0:00:00]} 4. Nf3 {[%emt 0:00:41]} b6 {[%emt 0:00:00]} 5. e3 {[%emt 0:03:23]} Bb7 {[%emt 0:00:00]} 6. Bd3 {[%emt 0:00:15]} O-O {[%emt 0:00:28]} 7. O-O {[%emt 0:03:16]} d5 {[%emt 0:08:39]} 8. cxd5 {[%emt 0:00:48]} exd5 {[%emt 0:00:01]} 9. Ne5 {[%emt 0:00:39]} c5 {[%emt 0:04:13]} 10. Bd2 {[%emt 0:03:52]} Nbd7 {[%emt 0:07:25]} 11. a3 {[%emt 0:05:15]} Bxc3 {[%emt 0:00:53]} 12. Bxc3 {[%emt 0:00:07]} Nxe5 {[%emt 0:02:15]} 13. dxe5 {[%emt 0:00:02]} Ne4 {[%emt 0:00:01]} 14. Bxe4 {[%emt 0:00:13]} dxe4 {[%emt 0:00:02]} 15. Qg4 {[%emt 0:00:05]} Qe7 {[%emt 0:01:10]} 16. Rfd1 {[%emt 0:11:03]} Rad8 {[%emt 0:01:45]} 17. Rd6 {[%emt 0:01:23]} Bc8 {[%emt 0:02:03]} 18. Qf4 {[%emt 0:03:05]} Rxd6 {[%emt 0:01:01]} 19. exd6 {[%emt 0:00:05]} Qe6 {[%emt 0:00:09]} 20. h3 {[%emt 0:02:50]} f6 {[%emt 0:00:47]} 21. Rd1 {[%emt 0:01:29]} Rd8 {[%emt 0:00:09]} 22. Kh2 {[%emt 0:05:46]} Ba6 {[%emt 0:01:04]} 23. f3 {[%emt 0:02:57]} Bd3 {[%emt 0:00:58]} 24. fxe4 {[%emt 0:01:50]} Qxe4 {[%emt 0:02:47]} 25. Qg3 {[%emt 0:00:10]} Kf7 {[%emt 0:00:31]} 26. Rd2 {[%emt 0:00:42]} c4 {[%emt 0:00:26]} 27. Rf2 {[%emt 0:01:09]} Qe6 {[%emt 0:00:50]} 28. Kg1 {[%emt 0:06:13]} Qxd6 {[%emt 0:08:59]} 29. Qh4 {[%emt 0:00:59]} Qe6 {[%emt 0:10:34]} 30. Qg3 {[%emt 0:01:25]} Qd6 {[%emt 0:00:13]} 31. Qh4 {[%emt 0:00:40]} Re8 {[%emt 0:00:36]} 32. Bd4 {[%emt 0:00:56]} Re6 {[%emt 0:00:17]} 33. Qh5+ {[%emt 0:00:43]} Kg8 {[%emt 0:00:15]} 34. Qg4 {[%emt 0:00:44]} h6 {[%emt 0:00:52]} 35. Qf3 {[%emt 0:01:07]} Re4 {[%emt 0:03:21]} 36. Qh5 {[%emt 0:01:35]} Qe7 {[%emt 0:12:24]} 37. Qd5+ {[%emt 0:01:35]} Qe6 {[%emt 0:00:04]} 38. Qd8+ {[%emt 0:01:00]} Kh7 {[%emt 0:00:41]} 39. Rf3 {[%emt 0:01:19]} h5 {[%emt 0:02:36]} 40. Qb8 {[%emt 0:01:53]} Qd7 {[%emt 0:01:00]} 41. Kh2 {[%emt 0:03:33]} Rxd4 {[%emt 0:09:51]} 42. exd4 {[%emt 0:00:18]} Qxd4 {[%emt 0:00:04]} 43. Qe8 {[%emt 0:03:27]} Bg6 {[%emt 0:03:51]} 44. Qe2 {[%emt 0:00:41]} b5 {[%emt 0:01:11]} 45. Qf2 {[%emt 0:04:23]} Qe5+ {[%emt 0:01:19]} 46. Kh1 {[%emt 0:00:48]} a5 {[%emt 0:00:16]} 47. Qd2 {[%emt 0:01:20]} Bd3 {[%emt 0:03:06]} 48. Re3 {[%emt 0:04:08]} Qg5 {[%emt 0:03:04]} 49. Qf2 {[%emt 0:03:06]} b4 {[%emt 0:00:59]} 50. axb4 {[%emt 0:02:08]} axb4 {[%emt 0:00:01]} 51. b3 {[%emt 0:02:18]} Qc5 {[%emt 0:01:08]} 52. Qd2 {[%emt 0:02:54]} Bg6 {[%emt 0:00:46]} 53. bxc4 {[%emt 0:00:46]} Qxc4 {[%emt 0:00:03]} 54. Qd1 {[%emt 0:03:55]} Qf4 {[%emt 0:05:21]} 55. Qf3 {[%emt 0:01:38]} Qc4 {[%emt 0:01:33]} 56. Qd1 {[%emt 0:00:19]} Kh6 {[%emt 0:00:49]} 57. Rb3 {[%emt 0:01:58]} Kh7 {[%emt 0:01:07]} 1/2-1/2

[Event "7th Iberoamerican-ch 2019"]
[Site "Linares"]
[Date "2019.08.17"]
[Round "8.24"]
[White "Garcia Martin, Marta"]
[Black "Mieles Palau, Daniel"]
[Result "0-1"]
[ECO "B31"]
[WhiteElo "2313"]
[BlackElo "2384"]
[Annotator "NA"]
[PlyCount "108"]
[EventDate "2019.08.10"]
[EventType "swiss"]
[EventCountry "ESP"]
[SourceTitle "playchess.com"]
[Source "ChessBase"]
[SourceQuality "1"]
[TimeControl "5400+30"]

1. e4 {[%emt 0:04:49]} c5 {[%emt 0:00:00]} 2. Nf3 {[%emt 0:00:09]} Nc6 {[%emt 0:00:00]} 3. Bb5 {[%emt 0:00:19]} g6 {[%emt 0:00:24]} 4. Bxc6 {[%emt 0:00:12]} dxc6 {[%emt 0:00:08]} 5. d3 {[%emt 0:00:05]} Bg7 {[%emt 0:00:17]} 6. h3 {[%emt 0:00:13]} Nf6 {[%emt 0:00:34]} 7. Nc3 {[%emt 0:00:16]} Nd7 {[%emt 0:01:19]} 8. Be3 {[%emt 0:00:30]} e5 {[%emt 0:00:08]} 9. Qd2 {[%emt 0:00:11]} h6 {[%emt 0:00:06]} 10. O-O {[%emt 0:00:30]} b6 {[%emt 0:00:10]} 11. Nh2 {[%emt 0:09:11]} Nf8 {[%emt 0:00:21]} 12. f4 {[%emt 0:00:51]} exf4 {[%emt 0:00:52]} 13. Bxf4 {[%emt 0:00:19]} Ne6 {[%emt 0:00:07]} 14. Bg3 {[%emt 0:00:20]} Qg5 {[%emt 0:00:10]} 15. Qe1 {[%emt 0:19:30]} Nd4 {[%emt 0:09:48]} 16. Bf4 {[%emt 0:05:58]} Qe7 {[%emt 0:08:41]} 17. Qd2 {[%emt 0:01:10]} g5 {[%emt 0:11:17]} 18. Bg3 {[%emt 0:01:58]} h5 {[%emt 0:01:16]} 19. Rae1 {[%emt 0:13:47]} h4 {[%emt 0:09:11]} 20. Nd5 {[%emt 0:01:02]} Qf8 {[%emt 0:23:12]} 21. Nc7+ {[%emt 0:12:28]} Kd7 {[%emt 0:01:31]} 22. Nxa8 {[%emt 0:09:26]} hxg3 {[%emt 0:00:08]} 23. Ng4 {[%emt 0:00:03]} Ne6 {[%emt 0:02:32]} 24. Rf5 {[%emt 0:03:58]} Rh4 {[%emt 0:13:19]} 25. c3 {[%emt 0:03:22]} Rxg4 {[%emt 0:00:59]} 26. hxg4 {[%emt 0:00:03]} Qh8 {[%emt 0:00:23]} 27. Qe3 {[%emt 0:00:17]} Be5 {[%emt 0:01:35]} 28. Kf1 {[%emt 0:09:29]} Ke7 {[%emt 0:05:47]} 29. Ke2 {[%emt 0:01:57]} Nf4+ {[%emt 0:00:10]} 30. Kd2 {[%emt 0:00:21]} Bxf5 {[%emt 0:04:48]} 31. exf5 {[%emt 0:00:08]} f6 {[%emt 0:00:01]} 32. Qxg3 {[%emt 0:01:27]} Qxa8 {[%emt 0:00:29]} 33. Qf3 {[%emt 0:00:11]} Kf7 {[%emt 0:01:54]} 34. g3 {[%emt 0:00:35]} Nd5 {[%emt 0:00:07]} 35. Qh1 {[%emt 0:00:56]} Kg7 {[%emt 0:01:21]} 36. Qh5 {[%emt 0:00:48]} Ne7 {[%emt 0:00:03]} 37. Rh1 {[%emt 0:00:58]} Qg8 {[%emt 0:00:10]} 38. Kc2 {[%emt 0:00:39]} Bxg3 {[%emt 0:00:19]} 39. Rh3 {[%emt 0:00:30]} Bh4 {[%emt 0:00:18]} 40. Re3 {[%emt 0:00:16]} Qf7 {[%emt 0:00:36]} 41. Qxf7+ {[%emt 0:00:28]} Kxf7 {[%emt 0:00:03]} 42. Re6 {[%emt 0:00:33]} Bg3 {[%emt 0:01:06]} 43. Kd1 {[%emt 0:00:46]} Be5 {[%emt 0:00:19]} 44. Ke2 {[%emt 0:00:25]} Ke8 {[%emt 0:01:11]} 45. Kf3 {[%emt 0:00:32]} Kd7 {[%emt 0:00:09]} 46. Ke4 {[%emt 0:00:24]} Nd5 {[%emt 0:00:32]} 47. d4 {[%emt 0:00:19]} cxd4 {[%emt 0:00:26]} 48. cxd4 {[%emt 0:00:03]} Nc7 {[%emt 0:02:20]} 49. Rxe5 {[%emt 0:00:33]} fxe5 {[%emt 0:00:04]} 50. dxe5 {[%emt 0:00:47]} c5 {[%emt 0:00:28]} 51. a4 {[%emt 0:00:26]} Kc6 {[%emt 0:00:57]} 52. f6 {[%emt 0:00:38]} Ne6 {[%emt 0:00:06]} 53. Kf5 {[%emt 0:00:47]} Kd5 {[%emt 0:00:03]} 54. f7 {[%emt 0:00:28]} a6 {[%emt 0:00:09]} 0-1